fUSD/lending_fUSD_20260524
["ID","MTS","AMOUNT","RATE_DAILY","PERIOD"]
[422884197,1779570631000,-169.415725,7.945e-05,2]
[422884213,1779570631000,-381.9,0.0001841,2]
[422884224,1779570631000,-151.0,0.00018473,2]
[422884227,1779570631000,-151.0,0.00018473,2]
[422884237,1779570631000,-151.0,0.00018473,2]
[422884313,1779570631000,-1254.41808677,0.00019683,2]
[422884306,1779570631000,-39961.41331735,0.00019683,2]
[422884302,1779570631000,-1934.38338736,0.00019569,2]
[422884309,1779570631000,-90179.45453115,0.00019683,2]
[422884304,1779570631000,-510.03913383,0.00019637,2]
[422884300,1779570631000,-150.99,0.00019339,2]
[422884296,1779570631000,-453.2,0.00019339,2]
[422884294,1779570631000,-299.99,0.00019339,7]
[422884291,1779570631000,-1865.36488656,0.00019021,2]
[422884288,1779570631000,-151.0,0.00018473,2]
[422884285,1779570631000,-151.0,0.00018473,2]
[422884282,1779570631000,-151.0,0.00018473,2]
[422884279,1779570631000,-151.0,0.00018473,2]
[422884277,1779570631000,-151.0,0.00018473,2]
[422884271,1779570631000,-151.0,0.00018473,2]
[422884298,1779570631000,-3153.97,0.00019339,2]
[422884268,1779570631000,-151.0,0.00018473,2]
[422884274,1779570631000,-151.0,0.00018473,2]
[422884239,1779570631000,-151.0,0.00018473,2]
[422884242,1779570631000,-151.0,0.00018473,2]
[422884244,1779570631000,-151.0,0.00018473,2]
[422884246,1779570631000,-151.0,0.00018473,2]
[422884248,1779570631000,-151.0,0.00018473,2]
[422884256,1779570631000,-151.0,0.00018473,2]
[422884235,1779570631000,-151.0,0.00018473,2]
[422884252,1779570631000,-151.0,0.00018473,2]
[422884250,1779570631000,-151.0,0.00018473,2]
[422884316,1779570631000,-20081.49130935,0.00019683,2]
[422884254,1779570631000,-151.0,0.00018473,2]
[422884258,1779570631000,-151.0,0.00018473,2]
[422884260,1779570631000,-151.0,0.00018473,2]
[422884264,1779570631000,-151.0,0.00018473,2]
[422884321,1779570632000,-13219.3464139,0.00019683,2]
[422884329,1779570632000,-1800.0,0.00019683,2]
[422884325,1779570632000,-645.55505471,0.00019683,2]
[422884378,1779570639000,-617.92565846,0.00019683,5]
[422884377,1779570639000,-280.570408,0.0001791,2]
[422884379,1779570640000,-174.07434154,0.00019683,5]
[422884380,1779570640000,-285.59565846,0.00019683,5]
[422884390,1779570641000,-2137.39999991,0.00019683,2]
[422884389,1779570641000,-2136.29999999,0.00019683,2]
[422884388,1779570641000,-3313.65792298,0.00019683,2]
[422884387,1779570641000,-303.83756816,0.00019683,2]
[422884385,1779570641000,-242.29375122,0.00019683,5]
[422884382,1779570641000,-409.76624878,0.00019683,5]
[422884383,1779570641000,-822.23375122,0.00019683,5]
[422884384,1779570641000,-399.70624878,0.00019683,5]
[422884381,1779570641000,-283.5076129,0.00019682,2]
[422884386,1779570641000,-734.0,0.00019683,5]
[422884517,1779570642000,-323.4252,0.00019683,5]
[422884519,1779570642000,-665.0,0.00019683,5]
[422884521,1779570642000,-325.74404468,0.00019683,2]
[422884520,1779570642000,-517.0,0.00019683,5]
[422884518,1779570642000,-292.5748,0.00019683,5]
[422884565,1779570643000,-5000.0,0.00021918,2]
[422884543,1779570643000,-150.0,0.00020615,2]
[422884548,1779570643000,-211.98,0.00020983,2]
[422884558,1779570643000,-951.01,0.00021411,2]
[422884557,1779570643000,-279.38078626,0.00021341,2]
[422884549,1779570643000,-175.0,0.00021,2]
[422884547,1779570643000,-951.01,0.00020889,2]
[422884550,1779570643000,-631.0,0.00021,2]
[422884554,1779570643000,-220.0,0.00021,2]
[422884553,1779570643000,-1057.0,0.00021,2]
[422884569,1779570643000,-450.0,0.00022,2]
[422884556,1779570643000,-2157.14243826,0.00021213,2]
[422884551,1779570643000,-152.0,0.00021,2]
[422884555,1779570643000,-14264.47,0.00021101,2]
[422884560,1779570643000,-2236.95670847,0.00021761,2]
[422884564,1779570643000,-500.0,0.000219,2]
[422884561,1779570643000,-200.0,0.00021796,2]
[422884562,1779570643000,-152.0,0.0002188,7]
[422884563,1779570643000,-152.0,0.0002188,7]
[422884566,1779570643000,-156.61,0.00021918,2]
[422884567,1779570643000,-951.01,0.00021933,2]
[422884542,1779570643000,-500.0,0.00020573,2]
[422884552,1779570643000,-942.0,0.00021,2]
[422884541,1779570643000,-3635.0,0.00020395,2]
[422884545,1779570643000,-316.812,0.00020799,2]
[422884559,1779570643000,-150.0,0.00021485,2]
[422884522,1779570643000,-701.0,0.00019683,5]
[422884524,1779570643000,-29517.70625105,0.00019683,2]
[422884526,1779570643000,-400.0,0.0002,2]
[422884525,1779570643000,-66168.5939,0.00019783,2]
[422884527,1779570643000,-175.0,0.0002,2]
[422884523,1779570643000,-462.0,0.00019683,5]
[422884529,1779570643000,-152.0,0.0002,2]
[422884533,1779570643000,-2005.9555727,0.00020117,2]
[422884530,1779570643000,-942.0,0.0002,2]
[422884532,1779570643000,-220.0,0.0002,2]
[422884528,1779570643000,-631.0,0.0002,2]
[422884531,1779570643000,-1057.0,0.0002,2]
[422884534,1779570643000,-153.6613,0.00020267,2]
[422884536,1779570643000,-381.9,0.00020381,2]
[422884537,1779570643000,-418.286,0.00020395,2]
[422884535,1779570643000,-366.30471872,0.00020268,2]
[422884538,1779570643000,-625.0,0.00020395,2]
[422884539,1779570643000,-3546.0,0.00020395,2]
[422884546,1779570643000,-169.49,0.00020869,2]
[422884540,1779570643000,-6060.0,0.00020395,2]
[422884544,1779570643000,-2080.17592889,0.00020665,2]
[422884570,1779570643000,-175.0,0.00022,2]
[422884622,1779570643000,-3545.0,0.00023395,2]
[422884575,1779570643000,-942.0,0.00022,2]
[422884611,1779570643000,-2405.55389863,0.00022857,2]
[422884602,1779570643000,-151.0,0.00022688,2]
[422884601,1779570643000,-151.0,0.00022688,2]
[422884599,1779570643000,-151.0,0.00022688,2]
[422884606,1779570643000,-151.0,0.00022688,2]
[422884603,1779570643000,-166.020768,0.00022688,2]
[422884608,1779570643000,-151.0,0.00022688,2]
[422884604,1779570643000,-151.0,0.00022688,2]
[422884605,1779570643000,-295.471309,0.00022688,2]
[422884607,1779570643000,-151.0,0.00022688,2]
[422884609,1779570643000,-152.0,0.00022695,2]
[422884612,1779570643000,-288.1297555,0.000229,2]
[422884614,1779570643000,-951.01,0.00022978,2]
[422884615,1779570643000,-175.0,0.00023,2]
[422884619,1779570643000,-1057.0,0.00023,2]
[422884616,1779570643000,-631.0,0.00023,2]
[422884617,1779570643000,-158.0,0.00023,2]
[422884618,1779570643000,-942.0,0.00023,2]
[422884572,1779570643000,-631.0,0.00022,2]
[422884620,1779570643000,-220.0,0.00023,2]
[422884613,1779570643000,-151.0,0.000229,2]
[422884610,1779570643000,-168.91,0.00022728,2]
[422884600,1779570643000,-151.0,0.00022688,2]
[422884621,1779570643000,-150.0,0.00023373,2]
[422884597,1779570643000,-255.1637511,0.00022688,2]
[422884593,1779570643000,-769.41962343,0.00022566,21]
[422884586,1779570643000,-151.0,0.00022565,2]
[422884576,1779570643000,-1057.0,0.00022,2]
[422884585,1779570643000,-951.01,0.00022455,2]
[422884587,1779570643000,-151.0,0.00022565,2]
[422884579,1779570643000,-317.94424105,0.00022134,2]
[422884580,1779570643000,-440.36876987,0.00022184,2]
[422884578,1779570643000,-220.0,0.00022,2]
[422884583,1779570643000,-381.9,0.00022353,2]
[422884582,1779570643000,-2319.72410669,0.00022309,2]
[422884574,1779570643000,-152.0,0.00022,2]
[422884584,1779570643000,-171.89,0.00022446,2]
[422884581,1779570643000,-257.5,0.00022253,2]
[422884598,1779570643000,-6321.8748994,0.00022688,2]
[422884595,1779570643000,-27292.3346929,0.00022688,2]
[422884590,1779570643000,-282.658887,0.00022565,2]
[422884596,1779570643000,-467.5583492,0.00022688,2]
[422884591,1779570643000,-151.0,0.00022565,2]
[422884588,1779570643000,-151.0,0.00022565,2]
[422884589,1779570643000,-151.0,0.00022565,2]
[422884594,1779570643000,-152.0,0.00022614,2]
[422884592,1779570643000,-151.0,0.00022565,2]
[422884666,1779570644000,-1235.1821493,0.00025232,2]
[422884652,1779570644000,-2781.82699784,0.00025049,2]
[422884646,1779570644000,-151.0,0.00024658,2]
[422884643,1779570644000,-1000.0,0.00024658,2]
[422884645,1779570644000,-151.0,0.00024658,2]
[422884647,1779570644000,-185.0,0.00025,2]
[422884651,1779570644000,-229.0,0.00025,2]
[422884650,1779570644000,-1066.0,0.00025,2]
[422884659,1779570644000,-239.550943,0.0002523,2]
[422884655,1779570644000,-2500.0,0.00025131,2]
[422884656,1779570644000,-151.0,0.0002523,2]
[422884653,1779570644000,-857.0,0.00025082,2]
[422884657,1779570644000,-239.550943,0.0002523,2]
[422884658,1779570644000,-239.550943,0.0002523,2]
[422884660,1779570644000,-239.550943,0.0002523,2]
[422884663,1779570644000,-200.0,0.00025232,2]
[422884644,1779570644000,-562.68,0.00024658,2]
[422884654,1779570644000,-2000.0,0.00025112,2]
[422884649,1779570644000,-950.0,0.00025,2]
[422884629,1779570644000,-500.0,0.00024,2]
[422884648,1779570644000,-648.0,0.00025,2]
[422884624,1779570644000,-3635.0,0.00023395,2]
[422884623,1779570644000,-6060.0,0.00023395,2]
[422884626,1779570644000,-445.63102474,0.00023636,2]
[422884636,1779570644000,-1463.29988777,0.00024443,2]
[422884625,1779570644000,-2494.55939288,0.00023405,2]
[422884628,1779570644000,-2586.85809042,0.00023953,2]
[422884627,1779570644000,-769.41962344,0.00023736,21]
[422884630,1779570644000,-175.0,0.00024,2]
[422884642,1779570644000,-156.61,0.00024658,8]
[422884632,1779570644000,-942.0,0.00024,2]
[422884635,1779570644000,-381.9,0.00024324,2]
[422884631,1779570644000,-631.0,0.00024,2]
[422884634,1779570644000,-220.0,0.00024,2]
[422884639,1779570644000,-151.0,0.00024555,2]
[422884637,1779570644000,-2682.57183977,0.00024501,2]
[422884638,1779570644000,-151.0,0.00024555,2]
[422884640,1779570644000,-151.0,0.00024555,2]
[422884641,1779570644000,-270.09926932,0.00024558,2]
[422884633,1779570644000,-1057.0,0.00024,2]
[422884665,1779570644000,-181.0801015,0.00025232,2]
[422884684,1779570644000,-201.834261,0.00025232,2]
[422884661,1779570644000,-181.08010149,0.00025232,2]
[422884686,1779570644000,-422.081168,0.00025232,2]
[422884690,1779570644000,-151.0,0.00025232,2]
[422884696,1779570644000,-151.0,0.00025232,2]
[422884695,1779570644000,-151.0,0.00025232,2]
[422884697,1779570644000,-151.0,0.00025232,2]
[422884691,1779570644000,-151.0,0.00025232,2]
[422884692,1779570644000,-151.0,0.00025232,2]
[422884698,1779570644000,-151.0,0.00025232,2]
[422884687,1779570644000,-422.081168,0.00025232,2]
[422884699,1779570644000,-151.0,0.00025232,2]
[422884693,1779570644000,-151.0,0.00025232,2]
[422884700,1779570644000,-151.0,0.00025232,2]
[422884701,1779570644000,-151.0,0.00025232,2]
[422884705,1779570644000,-197.05069469,0.00025596,2]
[422884703,1779570644000,-151.0,0.00025232,2]
[422884706,1779570644000,-500.0,0.00025596,2]
[422884704,1779570644000,-1463.29988777,0.0002525,2]
[422884664,1779570644000,-359.76179106,0.00025232,2]
[422884694,1779570644000,-151.0,0.00025232,2]
[422884685,1779570644000,-151.0,0.00025232,2]
[422884702,1779570644000,-151.0,0.00025232,2]
[422884683,1779570644000,-151.0,0.00025232,2]
[422884688,1779570644000,-422.081168,0.00025232,2]
[422884667,1779570644000,-8260.13072243,0.00025232,2]
[422884662,1779570644000,-3597.61791046,0.00025232,2]
[422884669,1779570644000,-152.0,0.00025232,2]
[422884668,1779570644000,-151.0,0.00025232,2]
[422884673,1779570644000,-181.08010151,0.00025232,2]
[422884670,1779570644000,-500.0,0.00025232,2]
[422884672,1779570644000,-152.0,0.00025232,2]
[422884675,1779570644000,-152.0,0.00025232,2]
[422884671,1779570644000,-599.60298507,0.00025232,2]
[422884681,1779570644000,-151.0,0.00025232,2]
[422884680,1779570644000,-151.0,0.00025232,2]
[422884677,1779570644000,-623.58710447,0.00025232,2]
[422884678,1779570644000,-181.0801015,0.00025232,2]
[422884676,1779570644000,-578.20924308,0.00025232,2]
[422884679,1779570644000,-190.91684106,0.00025232,2]
[422884682,1779570644000,-151.0,0.00025232,2]
[422884674,1779570644000,-181.08010151,0.00025232,2]
[422884689,1779570644000,-422.081168,0.00025232,2]
[422884720,1779570645000,-151.0,0.00026123,2]
[422884726,1779570645000,-422.081168,0.00026123,2]
[422884725,1779570645000,-422.081168,0.00026123,2]
[422884727,1779570645000,-422.081168,0.00026123,2]
[422884729,1779570645000,-151.0,0.00026123,2]
[422884728,1779570645000,-151.0,0.00026123,2]
[422884733,1779570645000,-239.550943,0.00026123,2]
[422884735,1779570645000,-151.0,0.00026123,2]
[422884736,1779570645000,-292.20264,0.00026123,2]
[422884732,1779570645000,-239.550943,0.00026123,2]
[422884722,1779570645000,-151.0,0.00026123,2]
[422884734,1779570645000,-239.550943,0.00026123,2]
[422884730,1779570645000,-239.550943,0.00026123,2]
[422884724,1779570645000,-151.0,0.00026123,2]
[422884715,1779570645000,-3364.12,0.00026123,7]
[422884719,1779570645000,-151.0,0.00026123,2]
[422884723,1779570645000,-422.081168,0.00026123,2]
[422884718,1779570645000,-215.31523495,0.00026123,7]
[422884716,1779570645000,-54841.31,0.00026123,7]
[422884714,1779570645000,-1463.29988777,0.00026057,2]
[422884712,1779570645000,-857.0,0.00025637,2]
[422884713,1779570645000,-550.0,0.00026,2]
[422884717,1779570645000,-151.0,0.00026123,2]
[422884711,1779570645000,-1000.0,0.000256,2]
[422884710,1779570645000,-2709.17605891,0.00025597,2]
[422884709,1779570645000,-265.06915692,0.00025596,2]
[422884708,1779570645000,-500.0,0.00025596,2]
[422884707,1779570645000,-246.48992268,0.00025596,2]
[422884738,1779570645000,-151.0,0.00026123,2]
[422884721,1779570645000,-151.0,0.00026123,2]
[422884737,1779570645000,-151.0,0.00026123,2]
[422884753,1779570645000,-315.904277,0.00026384,2]
[422884743,1779570645000,-151.0,0.00026123,2]
[422884771,1779570645000,-931.0,0.00021455,2]
[422884772,1779570645000,-615.0,0.00024,7]
[422884770,1779570645000,-1648.61340209,0.00026395,2]
[422884768,1779570645000,-315.904277,0.00026384,2]
[422884767,1779570645000,-315.904277,0.00026384,2]
[422884766,1779570645000,-315.904277,0.00026384,2]
[422884769,1779570645000,-6060.0,0.00026395,2]
[422884765,1779570645000,-315.904277,0.00026384,2]
[422884763,1779570645000,-315.904277,0.00026384,2]
[422884764,1779570645000,-315.904277,0.00026384,2]
[422884740,1779570645000,-151.0,0.00026123,2]
[422884760,1779570645000,-248.67222112,0.00026384,2]
[422884758,1779570645000,-315.904277,0.00026384,2]
[422884762,1779570645000,-67.23205588,0.00026384,2]
[422884761,1779570645000,-410.0,0.00019683,5]
[422884757,1779570645000,-315.904277,0.00026384,2]
[422884755,1779570645000,-315.904277,0.00026384,2]
[422884744,1779570645000,-171.89,0.00026151,2]
[422884756,1779570645000,-315.904277,0.00026384,2]
[422884742,1779570645000,-151.0,0.00026123,2]
[422884741,1779570645000,-151.0,0.00026123,2]
[422884746,1779570645000,-151.0,0.00026196,2]
[422884745,1779570645000,-857.0,0.00026192,3]
[422884747,1779570645000,-270.09926926,0.00026295,2]
[422884739,1779570645000,-151.0,0.00026123,2]
[422884752,1779570645000,-315.904277,0.00026384,2]
[422884748,1779570645000,-381.9,0.00026296,2]
[422884749,1779570645000,-200.0,0.00026328,2]
[422884751,1779570645000,-315.904277,0.00026384,2]
[422884754,1779570645000,-315.904277,0.00026384,2]
[422884750,1779570645000,-315.904277,0.00026384,2]
[422884781,1779570646000,-186.69,0.00027,2]
[422884782,1779570646000,-200.0,0.00027045,2]
[422884779,1779570646000,-215.31523495,0.000269,7]
[422884780,1779570646000,-150.0,0.00027,2]
[422884777,1779570646000,-857.0,0.00026746,3]
[422884775,1779570646000,-931.0,0.00024455,2]
[422884778,1779570646000,-1463.29988777,0.00026864,2]
[422884776,1779570646000,-1986.38659791,0.00026395,2]
[422884774,1779570646000,-604.0,0.00024,7]
[422884785,1779570646000,-150.0,0.00027099,4]
[422884788,1779570646000,-200.0,0.00027121,2]
[422884786,1779570646000,-150.0,0.00027099,4]
[422884773,1779570646000,-305.0,0.00024,7]
[422884787,1779570646000,-150.0,0.00027099,4]
[422884797,1779570646000,-364.42414516,0.00027353,7]
[422884798,1779570646000,-8561.3513592,0.00027353,7]
[422884795,1779570646000,-155.0,0.00027327,5]
[422884793,1779570646000,-979.28903642,0.00027297,2]
[422884791,1779570646000,-305.0,0.00026384,10]
[422884783,1779570646000,-150.0,0.00027099,7]
[422884794,1779570646000,-857.0,0.00027301,4]
[422884796,1779570646000,-2695.69188949,0.00027353,7]
[422884792,1779570646000,-615.0,0.00026384,10]
[422884789,1779570646000,-1440.50643115,0.00027297,2]
[422884784,1779570646000,-150.0,0.00027099,4]
[422884790,1779570646000,-227.01907409,0.00026123,2]
[422884801,1779570664000,161.53114251,0.00018767,30]
[422884802,1779570681000,188.45299959,0.00018801,30]
[422884803,1779570698000,157.04416633,0.00018761,30]
[422884804,1779570714000,196.30520791,0.00018703,30]
[422884805,1779570731000,294.45781186,0.00018635,30]
[422884816,1779571053000,152.0,0.00018665,30]
[422884820,1779571139000,171.12939914,0.00016438,30]
[422884819,1779571139000,171.12939914,0.00016438,30]
[422884822,1779571156000,210.49344195,0.00016438,30]
[422884821,1779571156000,210.49344195,0.00016438,30]
[422884823,1779571173000,162.48090094,0.00016438,30]
[422884824,1779571174000,162.48090094,0.00016438,30]
[422884827,1779571191000,150.9417057,0.00016438,30]
[422884826,1779571191000,150.9417057,0.00016438,30]
[422884831,1779571319000,2000.0,0.00027438,120]
[422884833,1779571740000,1000.0,0.00027628,120]
[422884864,1779571831000,-853.0,0.00014072,2]
[422884883,1779571831000,-500.0,0.00014999,2]
[422884882,1779571831000,-500.0,0.00014999,2]
[422884873,1779571831000,-2500.0,0.00014074,2]
[422884874,1779571831000,-2177.81592084,0.000149,2]
[422884871,1779571831000,-300.0,0.00014074,2]
[422884879,1779571831000,-500.0,0.00014999,2]
[422884880,1779571831000,-500.0,0.00014999,2]
[422884870,1779571831000,-300.0,0.00014074,2]
[422884872,1779571831000,-194.47955433,0.00014074,2]
[422884875,1779571831000,-1093.31332948,0.000149,2]
[422884877,1779571831000,-500.0,0.00014999,2]
[422884868,1779571831000,-2500.0,0.00014074,2]
[422884881,1779571831000,-500.0,0.00014999,2]
[422884878,1779571831000,-500.0,0.00014999,2]
[422884869,1779571831000,-1629.25462072,0.00014074,2]
[422884859,1779571831000,-300.0,0.00013711,2]
[422884861,1779571831000,-300.0,0.00013711,2]
[422884858,1779571831000,-152.58,0.00012795,2]
[422884862,1779571831000,-208.78535381,0.00013869,2]
[422884860,1779571831000,-300.0,0.00013711,2]
[422884866,1779571831000,-1200.0,0.00014073,2]
[422884867,1779571831000,-2131.03837664,0.00014074,2]
[422884865,1779571831000,-300.0,0.00014073,2]
[422884863,1779571831000,-250.0,0.00014,2]
[422884888,1779571831000,-500.0,0.00014999,2]
[422884876,1779571831000,-150.0,0.00014998,2]
[422884885,1779571831000,-500.0,0.00014999,2]
[422884884,1779571831000,-500.0,0.00014999,2]
[422884917,1779571831000,-500.0,0.00014999,2]
[422884915,1779571831000,-500.0,0.00014999,2]
[422884922,1779571831000,-500.0,0.00014999,2]
[422884919,1779571831000,-500.0,0.00014999,2]
[422884913,1779571831000,-239.45554675,0.00014999,2]
[422884911,1779571831000,-500.0,0.00014999,2]
[422884909,1779571831000,-500.0,0.00014999,2]
[422884902,1779571831000,-500.0,0.00014999,2]
[422884903,1779571831000,-500.0,0.00014999,2]
[422884900,1779571831000,-500.0,0.00014999,2]
[422884898,1779571831000,-500.0,0.00014999,2]
[422884920,1779571831000,-500.0,0.00014999,2]
[422884894,1779571831000,-500.0,0.00014999,2]
[422884907,1779571831000,-500.0,0.00014999,2]
[422884887,1779571831000,-500.0,0.00014999,2]
[422884886,1779571831000,-500.0,0.00014999,2]
[422884891,1779571831000,-5.49642519,0.00014999,2]
[422884890,1779571831000,-407.2808555,0.00014999,2]
[422884889,1779571831000,-92.7191445,0.00014999,2]
[422884895,1779571831000,-500.0,0.00014999,2]
[422884905,1779571831000,-500.0,0.00014999,2]
[422884893,1779571831000,-500.0,0.00014999,2]
[422884896,1779571831000,-500.0,0.00014999,2]
[422884897,1779571831000,-500.0,0.00014999,2]
[422884892,1779571831000,-494.50357481,0.00014999,2]
[422884960,1779571832000,-1050.17875004,0.00014999,2]
[422884950,1779571832000,-1050.17875004,0.00014999,2]
[422884958,1779571832000,-1050.17875004,0.00014999,2]
[422884954,1779571832000,-1050.17875004,0.00014999,2]
[422884952,1779571832000,-1050.17875004,0.00014999,2]
[422884956,1779571832000,-1050.17875004,0.00014999,2]
[422884944,1779571832000,-500.0,0.00014999,2]
[422884946,1779571832000,-1050.17875004,0.00014999,2]
[422884948,1779571832000,-1050.17875004,0.00014999,2]
[422884934,1779571832000,-500.0,0.00014999,2]
[422884940,1779571832000,-500.0,0.00014999,2]
[422884936,1779571832000,-500.0,0.00014999,2]
[422884932,1779571832000,-500.0,0.00014999,2]
[422884938,1779571832000,-500.0,0.00014999,2]
[422884930,1779571832000,-500.0,0.00014999,2]
[422884928,1779571832000,-500.0,0.00014999,2]
[422884926,1779571832000,-500.0,0.00014999,2]
[422884924,1779571832000,-500.0,0.00014999,2]
[422884963,1779571832000,-1050.17875004,0.00014999,2]
[422884942,1779571832000,-500.0,0.00014999,2]
[422884965,1779571832000,-1050.17875004,0.00014999,2]
[422884988,1779571832000,-68.37453105,0.00014999,2]
[422884969,1779571832000,-1050.17875004,0.00014999,2]
[422885003,1779571832000,-346.276,0.00014999,2]
[422885004,1779571832000,-320.124,0.00014999,2]
[422885000,1779571832000,-483.96697237,0.00014999,2]
[422884967,1779571832000,-1050.17875004,0.00014999,2]
[422884997,1779571832000,-310.81584627,0.00014999,2]
[422884998,1779571832000,-1050.17875004,0.00014999,2]
[422884996,1779571832000,-739.36290377,0.00014999,2]
[422884995,1779571832000,-338.49193844,0.00014999,2]
[422885001,1779571832000,-430.20637398,0.00014999,2]
[422884999,1779571832000,-136.00540369,0.00014999,2]
[422885002,1779571832000,-154.59317707,0.00014999,2]
[422884990,1779571832000,-1050.17875004,0.00014999,2]
[422884973,1779571832000,-1050.17875004,0.00014999,2]
[422884975,1779571832000,-1050.17875004,0.00014999,2]
[422884992,1779571832000,-72.78209675,0.00014999,2]
[422884977,1779571832000,-1050.17875004,0.00014999,2]
[422884971,1779571832000,-1050.17875004,0.00014999,2]
[422884986,1779571832000,-387.105,0.00014999,2]
[422884981,1779571832000,-594.69921899,0.00014999,2]
[422884979,1779571832000,-1050.17875004,0.00014999,2]
[422884994,1779571832000,-638.90471485,0.00014999,2]
[422885017,1779571838000,-1021.62451193,0.00014999,2]
[422885020,1779571838000,-1017.86555772,0.00014999,2]
[422885013,1779571838000,-1050.17875004,0.00014999,2]
[422885021,1779571838000,-1017.86555772,0.00014999,2]
[422885018,1779571838000,-1017.86555772,0.00014999,2]
[422885010,1779571838000,-394.27312022,0.00014999,2]
[422885012,1779571838000,-372.84826181,0.00014999,2]
[422885009,1779571838000,-655.90562982,0.00014999,2]
[422885011,1779571838000,-677.33048823,0.00014999,2]
[422885008,1779571838000,-229.18557297,0.00014999,2]
[422885019,1779571838000,-1017.86555772,0.00014999,2]
[422885014,1779571838000,-309.39298815,0.00014999,2]
[422885016,1779571838000,-28.55423811,0.00014999,2]
[422885015,1779571838000,-740.78576189,0.00014999,2]
[422885029,1779571838000,-1017.86555772,0.00014999,2]
[422885035,1779571838000,-580.29201335,0.00015,2]
[422885034,1779571838000,-4867.21105914,0.00015,2]
[422885030,1779571838000,-1017.86555772,0.00014999,2]
[422885031,1779571838000,-522.54294588,0.00014999,2]
[422885032,1779571838000,-535.54840985,0.00014999,2]
[422885033,1779571838000,-11653.88844681,0.00015,2]
[422885022,1779571838000,-1017.86555772,0.00014999,2]
[422885024,1779571838000,-1017.86555772,0.00014999,2]
[422885026,1779571838000,-1017.86555772,0.00014999,2]
[422885023,1779571838000,-1017.86555772,0.00014999,2]
[422885025,1779571838000,-1017.86555772,0.00014999,2]
[422885027,1779571838000,-1017.86555772,0.00014999,2]
[422885028,1779571838000,-1017.86555772,0.00014999,2]
[422885058,1779571840000,-21459.18246627,0.00015,2]
[422885137,1779571843000,-151.0,0.00020897,2]
[422885141,1779571843000,-151.0,0.00020897,2]
[422885106,1779571843000,-441.0,0.0002,2]
[422885109,1779571843000,-739.0,0.0002,2]
[422885131,1779571843000,-151.0,0.00020897,2]
[422885132,1779571843000,-151.0,0.00020897,2]
[422885145,1779571843000,-151.0,0.00020897,2]
[422885095,1779571843000,-500.0,0.00017968,2]
[422885121,1779571843000,-151.0,0.00020897,2]
[422885149,1779571843000,-151.0,0.00020897,2]
[422885103,1779571843000,-151.0,0.00019682,2]
[422885099,1779571843000,-2177.81592075,0.00018456,2]
[422885124,1779571843000,-151.0,0.00020897,2]
[422885105,1779571843000,-153.0,0.0002,2]
[422885111,1779571843000,-2177.81592075,0.00020233,2]
[422885077,1779571843000,-438581.59944726,0.00015,2]
[422885094,1779571843000,-720.0,0.00017029,2]
[422885084,1779571843000,-300.0,0.00016,2]
[422885091,1779571843000,-2177.81592075,0.00016678,2]
[422885088,1779571843000,-10201.43239384,0.00016482,2]
[422885081,1779571843000,-300.0,0.00015417,2]
[422885090,1779571843000,-200.0,0.00016605,2]
[422885083,1779571843000,-1680.0,0.00015481,2]
[422885098,1779571843000,-381.9,0.0001841,2]
[422885086,1779571843000,-381.9,0.00016438,2]
[422885107,1779571843000,-400.0,0.0002,2]
[422885079,1779571843000,-27900.37785003,0.00015,2]